Cogmind - Beta 16 @@@ ROGUE MODE // 2025.12.02 @ 21:13:28 Player: AngelSpirit Result: Destroyed by H-66 Slayer with Gauss Rifle Performance ------------- Evolutions (4) 2000 Regions Visited (4) 800 Robots Destroyed (55) 275 Value Destroyed (1706) 1706 Prototype IDs (14) 280 Alien Tech Used (0) 0 Bonus (1016) 1016 TOTAL SCORE: 6077 Bonus ------- High Alert Combat Kills 48 Follower Combat Kills 168 Registered with UFD 300 Met Optimus in HQ 500 Cogmind --------- Core Integrity 0/850 Matter 73/300 Energy 71/100 System Corruption 10% Temperature Cool (0) Movement Core (50) Location -6/Factory Parts ------- > --- POWER (1) -------- (None) > --- PROPULSION (4) --- (None) > --- UTILITY (7) ------ (None) > --- WEAPON (3) ------- (None) > --- INVENTORY (5) ---- Matter Compressor (250) Advanced Sensor Array Peak State ------------ > --- POWER ------------ F-cell Engine > --- PROPULSION ------- Flexi-carbon Leg Flexi-carbon Leg Advanced VSS Leg Advanced VSS Leg > --- UTILITY ---------- Medium Storage Unit Sensor Array Advanced Signal Interpreter Hardened Light Armor Plating Hacking Suite System Shield Improved System Shield > --- WEAPON ----------- Improved Lightning Gun Junk Cannon > --- INVENTORY -------- Micro Nuclear Core Wheel Compact Matter Pod Matter Compressor Insulated Plating Authchip [Armor] Heavy Missile Launcher Remote Datajack Vortex Trap Vortex Trap [Rating: 71] Favorites ----------- Power Makeshift Power Source Engine Makeshift Power Source Power Core Light Nuclear Core Propulsion Wheel Leg Armored Leg Wheel Wheel Utility Medium Storage Unit Device Sensor Array Storage Medium Storage Unit Processor Advanced Signal Interpreter Hackware Hacking Suite Protection Hardened Light Armor Plating Weapon Junk Cannon Energy Gun Small Laser Energy Cannon Phase Cannon Ballistic Gun Autogun Ballistic Cannon Magnetic Acceleration Cannon Launcher Grenade Launcher Special Weapon Junk Cannon Impact Weapon Great Maul Build | -11 -10 -10 -9 -6 ------- Run | Yrd Mat Sub Scr Fac Slots Evolved 8 | . . . . 8 Power . | . . . . . Propulsion 2 | . . . . 2 Utility 5 | . . . . 5 Weapon 1 | . . . . 1 Parts Attached 73 | 6 13 6 2 46 Power 6 | 1 2 1 . 2 Engine 4 | 1 1 1 . 1 Core 2 | . 1 . . 1 Reactor . | . . . . . Propulsion 20 | 2 2 1 . 15 Treads . | . . . . . Leg 9 | . . . . 9 Wheel 11 | 2 2 1 . 6 Hover . | . . . . . Flight . | . . . . . Utility 25 | 1 4 1 . 19 Device 11 | . 2 1 . 8 Storage 2 | 1 1 . . . Processor 6 | . 1 . . 5 Hackware 4 | . . . . 4 Protection 2 | . . . . 2 Artifact . | . . . . . Weapon 22 | 2 5 3 2 10 Energy Gun 6 | 2 1 . . 3 Energy Cannon 5 | . 2 1 . 2 Ballistic Gun 6 | . 2 1 1 2 Ballistic Cannon 1 | . . . . 1 Launcher 2 | . . 1 . 1 Special Weapon 1 | . . . 1 . Impact Weapon 1 | . . . . 1 Slashing Weapon . | . . . . . Piercing Weapon . | . . . . . Special Melee Weapon . | . . . . . Unidentified Prototypes 6 | . . . 1 5 Parts Lost 24 | . 2 . . 22 Power 2 | . . . . 2 Propulsion 6 | . 2 . . 4 Utility 11 | . . . . 11 Weapon 5 | . . . . 5 Highest Loss Streak 7 | . 2 . . 7 To Critical Strikes 1 | . . . . 1 Average Backups 6 | . 5 9 8 5 Power . | . 1 2 . . Propulsion . | . 1 1 . . Utility 3 | . 2 3 4 2 Weapon 1 | . 1 3 1 . Tool/Special . | . . . . . Unused Backups 40 | . 3 1 15 21 Power 10 | . 3 . 3 4 Propulsion 6 | . . . 3 3 Utility 16 | . . . 6 10 Weapon 7 | . . 1 3 3 Tool/Special 1 | . . . . 1 Average Slot Usage (%) 87 | . 97 100 85 80 Engine 9 | . 7 14 14 5 Core 1 | . 6 . . . Leg 5 | . . . . 15 Wheel 19 | . 27 28 28 4 Device 11 | . 8 5 14 10 Storage 10 | . 14 14 14 2 Processor 4 | . 3 8 . 8 Hackware 4 | . . . . 12 Protection 1 | . . . . 3 Energy Gun 2 | . 11 . . 1 Energy Cannon 2 | . 5 9 . 2 Ballistic Gun 5 | . 10 7 5 2 Launcher 1 | . . 11 . . Special Weapon 4 | . . . 8 2 Peak Build Rating 71 | 6 11 13 23 71 Average Rating 29 | 4 9 11 18 56 On Entrance 10 | . 6 11 11 22 Avg Prop Armor Cover (%) 5 | . . . . 5 Naked Turns 5 | . . . . 5 Heaviest Build 47 | 10 24 26 29 47 Greatest Support 76 | 26 26 20 20 76 Greatest Overweight (x) 1 | . 1 1 1 1 Average Overweight (x) . | . . . . . Largest Inventory Capacity 10 | 8 10 10 10 10 Average Capacity 9 | 7 9 10 10 7 Most Carried 10 | . 10 10 10 10 Average Carried 7 | . 5 9 9 6 Final Capacity 10 | 8 10 10 10 5 Final Carried 10 | . 10 9 9 2 Class Distribution -------------------- 69% | Mutant 12% | Hacker-Skirmisher 6% | Assassin 6% | Hacker-Mutant Dominant Class ---------------- Mutant | -10/Materials Mutant | -10/Subcaves Mutant | -9/Scraptown Hacker-Skirmisher | -6/Factory Resources | -11 -10 -10 -9 -6 ----------- Run | Yrd Mat Sub Scr Fac Matter Collected 1665 | 171 387 89 301 717 Remotely . | . . . . . Salvage Created 2297 | . 508 35 . 1754 Parts 102 | . 40 1 . 61 Haulers Intercepted 1 | . 1 . . . Recyclers Shooed 2 | . 1 . . 1 Parts Field Recycled . | . . . . . Retrieved Matter . | . . . . . Parts Self-Destructed 4 | . . 4 . . Prevented . | . . . . . Parts Restored . | . . . . . Kills | -11 -10 -10 -9 -6 ------- Run | Yrd Mat Sub Scr Fac Combat Hostiles Destroyed 37 | . 10 1 . 26 Melee 4 | . . . . 4 Guns 7 | . 5 . . 2 Cannons 16 | . 5 1 . 10 AOE 5 | . . . . 5 Classes Destroyed 11 | . 6 1 . 4 Worker 3 | . 1 . . 2 Builder 5 | . . . . 5 Hauler 1 | . 1 . . . Recycler 4 | . . . . 4 Operator 2 | . 1 . . 1 Watcher 3 | . 3 . . . Swarmer 12 | . 3 . . 9 Grunt 18 | . 7 . . 11 Sentry 4 | . . 1 . 3 Hunter 2 | . . . . 2 Programmer 1 | . . . . 1 Best Kill Streak 6 | . 3 1 . 6 Combat Bots Only 3 | . 3 1 . 3 Max Kills in Single Turn 5 | . 2 1 . 5 Gunslinging . | . . . . . Exploded 2 | . . . . 2 Melee 1 | . . . . 1 Uniques/NPCs Destroyed . | . . . . . Combat | -11 -10 -10 -9 -6 -------- Run | Yrd Mat Sub Scr Fac Hostile Shots Fired 417 | . 35 8 . 374 Missed 169 | . 10 1 . 158 Hits 248 | . 25 7 . 216 Melee 1 | . . . . 1 Projectile 247 | . 25 7 . 215 Critical Strikes 2 | . . . . 2 Part Disruptions 2 | . . . . 2 Damage Taken 4422 | . 309 105 . 4008 Core 942 | . 62 17 . 863 Absorbed by Shields . | . . . . . Core Remaining (%) 84 | 100 . . 68 . Volleys Fired 152 | . 43 7 . 102 Largest 3 | . 2 2 . 3 Hottest 165 | . 120 110 . 165 Shots Fired 252 | . 86 10 . 156 Gun 124 | . 66 . . 58 Cannon 94 | . 20 5 . 69 Launcher 8 | . . 5 . 3 Special 26 | . . . . 26 Kinetic 87 | . 34 . . 53 Thermal 121 | . 52 5 . 64 Explosive 8 | . . 5 . 3 Electromagnetic 10 | . . . . 10 Impact 26 | . . . . 26 Robot Hit Streak 18 | . 9 10 . 18 Robot Miss Streak 5 | . 3 1 . 5 Penetration Max 1 | . . . . 1 Secondary Targets . | . . . . . Shots Hit Robots 149 | . 55 6 . 88 Core Hits 71 | . 23 2 . 46 Critical Kills 7 | . . . . 7 Critical Parts Destroyed 8 | . 1 . . 7 Critical Strikes 16 | . 1 . . 15 Meltdown 1 | . . . . 1 Destroy 8 | . 1 . . 7 Smash 7 | . . . . 7 Melee Attacks 12 | . . . . 12 Impact 12 | . . . . 12 Slashing . | . . . . . Piercing . | . . . . . Sneak Attacks . | . . . . . Combat Hostiles . | . . . . . Follow-up Attacks . | . . . . . Damage Inflicted 5742 | . 829 152 . 4761 Guns 1117 | . 584 . . 533 Cannons 1473 | . 245 106 . 1122 Explosions 1395 | . . 46 . 1349 Melee 268 | . . . . 268 Ramming 4 | . . . . 4 Kinetic 795 | . 367 . . 428 Thermal 2627 | . 462 106 . 2059 Explosive 339 | . . 46 . 293 Electromagnetic 224 | . . . . 224 Impact 1753 | . . . . 1753 Slashing . | . . . . . Piercing . | . . . . . Highest Corruption 10 | . . . . 10 Average Corruption 7 | . . . . 7 Corruption Purged 2 | . . . . 2 Corruption Blocked . | . . . . . Effects 20 | . . . . 20 Matter Fused 5 | . . . . 5 Heat Flow Errors 1 | . . . . 1 Energy Discharges 3 | . . . . 3 Parts Rejected 1 | . . . . 1 Data Loss (minor) 1 | . . . . 1 Data Loss (major) 1 | . . . . 1 Misfires 2 | . . . . 2 Weapon Failures 6 | . . . . 6 Overload Shots . | . . . . . Overflow Damage 668 | . . . . 668 Projectiles 410 | . . . . 410 Explosions 217 | . . . . 217 Melee 41 | . . . . 41 Knockbacks 9 | . . . . 9 Impact 7 | . . . . 7 Kinetic 2 | . . . . 2 Secondary . | . . . . . Self-Inflicted Damage 86 | . . . . 86 Shots 1 | . . . . 1 Rammed 1 | . . . . 1 Targets Rammed 1 | . . . . 1 Kicked . | . . . . . Crushed . | . . . . . Highest Temperature 214 | . 214 91 . 167 Average Temperature 59 | . 75 53 . 45 Received Heat Transfer 810 | . 168 27 . 615 Siege Activations . | . . . . . Martial Activations . | . . . . . Shielding Activations . | . . . . . Robots Disrupted . | . . . . . Combat Hostiles . | . . . . . Robots Corrupted 5 | . . . . 5 Combat Hostiles 4 | . . . . 4 Parts Fried 7 | . . . . 7 Impact Corruptions 11 | . . . . 11 Robots Melted 1 | . . . . 1 Combat Hostiles 1 | . . . . 1 Parts Melted 5 | . 2 . . 3 Heat Transferred 3113 | . 1018 148 . 1947 Parts Sabotaged 3 | . . . . 3 Parts Stolen . | . . . . . Parts Stripped . | . . . . . Power Chain Reactions 1 | . . . . 1 Alert | -11 -10 -10 -9 -6 ------- Run | Yrd Mat Sub Scr Fac Maximum Alert Level 2 | . . . . 2 Low Security (%) 60 | 100 100 . . 40 Level 1 31 | . . . . 47 Level 2 7 | . . . . 11 Level 3 . | . . . . . Level 4 . | . . . . . Level 5 . | . . . . . High Security . | . . . . . Max Security . | . . . . . Peak Influence 517 | . 81 . . 517 Initial . | . . . . . Average 155 | . 27 . . 220 Influence Increases 1788 | . 310 20 . 1458 Destroy 0b10 Robot/C 840 | . 200 20 . 620 Destroy 0b10 Robot/NC 95 | . 30 . . 65 Destroy Leader 178 | . 48 . . 130 Allied During Kill 39 | . . . . 39 Trap Triggered on 0b10 20 | . . . . 20 Successful Hack 77 | . 31 . . 46 Disable Machine 105 | . . . . 105 Destroy Structure 89 | . 1 . . 88 Lose Combat Pursuer 345 | . . . . 345 Influence Decreases 1304 | . 302 28 . 974 Entered New Map 4 | . . 4 . . Time Decay 830 | . 272 24 . 534 Search Patrol Dispatched 100 | . . . . 100 Lost Part 240 | . 20 . . 220 Lost Ally 130 | . 10 . . 120 Squads Dispatched 25 | . 1 . . 24 Investigation 10 | . . . . 10 Extermination 3 | . . . . 3 Reinforcement 5 | . 1 . . 4 Assault 1 | . . . . 1 Garrison 6 | . . . . 6 Intercept . | . . . . . Searches Triggered 1 | . . . . 1 Construction Impeded 1 | . . . . 1 Haulers Reinforced . | . . . . . Active Scanning Responses . | . . . . . Cargo Convoy Interrupts 1 | . . . . 1 Stealth | -11 -10 -10 -9 -6 --------- Run | Yrd Mat Sub Scr Fac Distress Signals 7 | . 2 . . 5 Communications Jammed . | . . . . . Distress Signals . | . . . . . Times Spotted 91 | . 15 3 . 73 Peak Tracking Total 17 | . 3 2 . 17 Tactical Retreats 11 | . . 1 . 10 Traps | -11 -10 -10 -9 -6 ------- Run | Yrd Mat Sub Scr Fac Traps Triggered 2 | . . . . 2 Indirectly . | . . . . . Trap Hack Attempts . | . . . . . Triggered . | . . . . . Disarmed . | . . . . . Reprogrammed . | . . . . . Reused 2 | . . . . 2 Traps Extracted . | . . . . . Installed 2 | . . . . 2 Triggered 2 | . . . . 2 Most Traps Carried 2 | . . . 2 2 Machines | -11 -10 -10 -9 -6 ---------- Run | Yrd Mat Sub Scr Fac Machines Disabled 7 | . . . . 7 Max in Single Turn 4 | . . . . 4 Garrison Access 1 | . . . . 1 Machines Repaired . | . . . . . Machines Dismantled . | . . . . . Machines Sabotaged . | . . . . . Overloaded Fab Kills . | . . . . . Hacking | -11 -10 -10 -9 -6 --------- Run | Yrd Mat Sub Scr Fac Machines Accessed 35 | . 6 1 6 22 Terminals 12 | . 6 . . 6 Fabricators 3 | . . . . 3 Repair Stations 1 | . . . . 1 Recycling Units 8 | . . . . 8 Scanalyzers 1 | . . . . 1 Garrison Access 3 | . . . . 3 Total Hacks 102 | . 25 5 24 48 Successful 70 | . 13 5 24 28 Failed 31 | . 11 . . 20 Catastrophic 5 | . 2 . . 3 Database Lockouts 1 | . 1 . . . Manual 32 | . 17 . . 15 Terminals 40 | . 25 . . 15 Fabricators 3 | . . . . 3 Repair Stations 3 | . . . . 3 Recycling Units 17 | . . . . 17 Scanalyzers 3 | . . . . 3 Garrison Access 7 | . . . . 7 Terminal Hacks 41 | . 7 5 24 5 Record 28 | . . 5 23 . Robot Analysis 3 | . 1 . . 2 Prototype ID Bank 1 | . 1 . . . Level Access Points 1 | . 1 . . . Terminal Index 1 | . . . . 1 Alert Level 1 | . . . . 1 Locate Traps 1 | . . . . 1 Hauler Manifests 1 | . 1 . . . Registered Components 2 | . 2 . . . Zone Layout 1 | . 1 . . . Proto ID Catalog 1 | . . . 1 . Fabricator Hacks 3 | . . . . 3 Network Status 1 | . . . . 1 Build 2 | . . . . 2 Repair Station Hacks 2 | . . . . 2 Scan Component 2 | . . . . 2 Recycling Unit Hacks 6 | . . . . 6 Report Inventory 3 | . . . . 3 Retrieve Components 3 | . . . . 3 Scanalyzer 3 | . . . . 3 Retrieve Study 3 | . . . . 3 Garrison Access Hacks 1 | . . . . 1 Seal Access 1 | . . . . 1 Unauthorized Hacks 14 | . 6 . . 8 Terminals 9 | . 6 . . 3 Assimilate 1 | . 1 . . . Botnet 8 | . 5 . . 3 Fabricators . | . . . . . Repair Stations . | . . . . . Recycling Units 5 | . . . . 5 Fedlink 4 | . . . . 4 Scrapoids 1 | . . . . 1 Scanalyzers . | . . . . . Garrison Access . | . . . . . Data Cores Recovered 1 | . . . . 1 Used . | . . . . . Hacking Detections 21 | . 6 . . 15 Full Trace Events 3 | . . . . 3 Feedback Events 1 | . . . . 1 Hackware Fried 1 | . . . . 1 Feedback Blocked . | . . . . . Robot Schematics Acquired . | . . . . . Robots Built . | . . . . . Authchips . | . . . . . Time . | . . . . . Total Robot Build Rating . | . . . . . Part Schematics Acquired . | . . . . . Parts Built 4 | . . . . 4 Authchips . | . . . . . Time 105 | . . . . 105 Total Part Build Rating 24 | . . . . 24 Part Studies Acquired 3 | . . . . 3 Parts Repaired . | . . . . . Time . | . . . . . Parts Recycled . | . . . . . Recycled Matter . | . . . . . Retrieved Matter . | . . . . . Retrieved Components 7 | . . . . 7 Parts Scanalyzed . | . . . . . Part Schematics Acquired . | . . . . . Parts Damaged . | . . . . . Bothacking | -11 -10 -10 -9 -6 ------------ Run | Yrd Mat Sub Scr Fac Used RIF Installer . | . . . . . Robots Hacked . | . . . . . Non-combat . | . . . . . Combat . | . . . . . Robot Hacks Applied . | . . . . . Relay Couplers Released . | . . . . . Fabnet Peak Effective % . | . . . . . Robots Rewired . | . . . . . Allies Hacked . | . . . . . Hacks Repelled . | . . . . . Allies | -11 -10 -10 -9 -6 -------- Run | Yrd Mat Sub Scr Fac Total Allies 7 | . 1 . 1 5 Largest Group 6 | . 1 . 1 6 Highest-Rated Group 182 | . 10 . 50 182 Highest-Rated Ally 50 | . 10 . 50 50 Total Orders . | . . . . . Ally Attacks 53 | . . . . 53 Total Damage 954 | . . . . 954 Kills 6 | . . . . 6 Allies Corrupted . | . . . . . Allies Melted . | . . . . . Intel | -11 -10 -10 -9 -6 ------- Run | Yrd Mat Sub Scr Fac Active Infowar (turns) 3960 | . . 262 2070 1628 Optics 403 | . . . . 403 Sensors 3810 | . . 262 2070 1478 IFF 180 | . . . . 180 Cloaking 534 | . . . . 534 Robot Analysis Total 3 | . 1 . . 2 Derelict Logs Recovered 1 | . . . 1 . Drone Launches . | . . . . . Drone Recoveries . | . . . . . Exploration | -11 -10 -10 -9 -6 ------------- Run | Yrd Mat Sub Scr Fac Turns Passed 5490 | 40 906 606 2070 1868 Spaces Moved 4962 | 36 649 601 2259 1417 Core 243 | 2 . . . 241 Treads . | . . . . . Legs 893 | . . . . 893 Wheels 3826 | 34 649 601 2259 283 Hover . | . . . . . Flight . | . . . . . Fastest Speed 50 | 50 80 80 80 50 Average Speed 90 | 87 91 92 88 91 Slowest Speed 185 | 90 95 95 95 185 Overloaded Moves . | . . . . . Propulsion Burnouts . | . . . . . Robots Hopped . | . . . . . Potential Cave-ins 6 | . . . . 6 Cave-ins Triggered 2 | . . . . 2 Exploration Rate (%) 51 | 4 91 38 86 39 Regions Visited 4 Branch Regions 2 Pre-discovered Areas 2 | . . 1 . 1 Known Exits Taken 2 | . 1 1 . . Unknown Exits Taken 2 | 1 . . 1 . Scrap Searched 6 | . . 1 5 . Spaces Dug 24 | . . . . 24 Terrain Destroyed 129 | . . 15 . 114 Melee 4 | . . . . 4 Projectile 34 | . . . . 34 AOE 90 | . . 15 . 75 Terrain Rammed . | . . . . . Walls Destroyed . | . . . . . Machines Disabled . | . . . . . Actions | -11 -10 -10 -9 -6 --------- Run | Yrd Mat Sub Scr Fac Total 5715 | 41 881 638 2345 1810 Wait 365 | . 146 18 29 172 Move 4956 | 35 648 600 2258 1415 Hop . | . . . . . Pick Up 60 | . 16 1 27 16 Fast Attach 52 | 6 8 1 2 35 Attach 15 | . 3 1 . 11 Detach 4 | . . 2 . 2 Swap 16 | . 3 5 . 8 Drop 78 | . 14 3 29 32 Fire 152 | . 43 7 . 102 Melee 12 | . . . . 12 Ram 1 | . . . . 1 Kick . | . . . . . Crush . | . . . . . Escape Stasis 2 | . . . . 2 Rewire . | . . . . . Trap 2 | . . . . 2 Miscellaneous . | . . . . . Route ------- -11/Scrapyard -10/Materials (discovered 6 exits: *Mat x3 / *Min x2 / *Sub) -10/Subcaves (discovered 2 exits: *Mat / *Scr) -9/Scraptown (discovered 2 exits: *Fac x2) -6/Factory (discovered 5 exits: Fac x3 / *Low x2) History --------- Turn | Location | Event 20 | -11/Scrapyard | Discovered new exit (range 15) 41 | -11/Scrapyard | Entered Materials 199 | -10/Materials | Identified exit to Materials 199 | -10/Materials | Central database locked down 311 | -10/Materials | Build established: Mutant 474 | -10/Materials | Discovered new exit (range 10) 483 | -10/Materials | Discovered new exit (range 16) 814 | -10/Materials | Identified exit to Mines 937 | -10/Materials | Discovered new exit (range 7) 946 | -10/Materials | Identified exit to Subcaves 947 | -10/Materials | Entered Subcaves 948 | -10/Subcaves | Approached by a straggling Scientist 951 | -10/Subcaves | Shifting Twisted Machinery released Barrage Gun 1024 | -10/Subcaves | Shifting Twisted Machinery released Mak. Power Source 1080 | -10/Subcaves | Shifting Twisted Machinery released Sub. Beam Cannon 1166 | -10/Subcaves | A swath of the cavern ceiling suddenly collapsed 1223 | -10/Subcaves | Discovered new exit (range 12) 1232 | -10/Subcaves | Identified exit to Materials 1267 | -10/Subcaves | Identified exit to Scraptown 1270 | -10/Subcaves | Scientist uncovered a shortcut to Scraptown 1302 | -10/Subcaves | Visited Clippyterm 1305 | -10/Subcaves | Learned location of Section 7 (-3) 1305 | -10/Subcaves | Learned 40 Factory zone layouts 1489 | -10/Subcaves | A swath of the cavern ceiling suddenly collapsed 1553 | -10/Subcaves | Entered Scraptown 1858 | -9/Scraptown | Discovered new exit (range 5) 1914 | -9/Scraptown | Scanned Subdweller tech in exchange for log data 1916 | -9/Scraptown | Learned 8 Research zone layouts 1935 | -9/Scraptown | Visited SPCMW 1961 | -9/Scraptown | Visited Spacefarers 1971 | -9/Scraptown | Visited Cyclists 2029 | -9/Scraptown | Visited IN-MT5's Study 2203 | -9/Scraptown | Visited Cave Peace 2208 | -9/Scraptown | Visited Shadow of the Wyrm 2221 | -9/Scraptown | Visited Awakened 2270 | -9/Scraptown | Visited UFD Registry 2270 | -9/Scraptown | Registered with UFD as "Pipenade" 2298 | -9/Scraptown | Visited Science Guys 2335 | -9/Scraptown | Visited Chapter 10 2351 | -9/Scraptown | Visited Junk Cannon Lab 2365 | -9/Scraptown | Found Prototype Special Weapon 2365 | -9/Scraptown | Identified Junk Cannon 2384 | -9/Scraptown | Visited Scrapoid Research Area 2402 | -9/Scraptown | Visited DA-N13 Charitable Foundation 2411 | -9/Scraptown | Found DCF Scrap (26 items) 2434 | -9/Scraptown | Visited Scrap Suit Storage 2478 | -9/Scraptown | Visited Abandonware Association 2487 | -9/Scraptown | Learned abandonware demo "REPAIR.EXE" 2511 | -9/Scraptown | Visited Botcube Research 2886 | -9/Scraptown | Found Scrap Suit 2936 | -9/Scraptown | Visited Curators Association 3091 | -9/Scraptown | Entered Cyclist Reading Room 3428 | -9/Scraptown | Found Botcube 3453 | -9/Scraptown | Botcube activated 3475 | -9/Scraptown | Botcube completed mutation into wheeled form, armed with 1 gun, 1 cannon. 3549 | -9/Scraptown | Met Optimus 3549 | -9/Scraptown | Accepted into 0bPrime 3610 | -9/Scraptown | Discovered new exit (range 3) 3623 | -9/Scraptown | Entered Factory 3623 | -6/Factory | Accompanied by 1 ally 3623 | -6/Factory | Evolved 8 slots: Propulsion x2, Utility x5, Weapon x1 3624 | -6/Factory | Identified exit to Lower Caves 3624 | -6/Factory | Identified exit to Factory 3709 | -6/Factory | Fabricated Proton Cannon? 3753 | -6/Factory | Loaded intel: 8 recycling unit locations 3942 | -6/Factory | Fabricated Adv. VSS Leg (x2) 3990 | -6/Factory | Build established: Hacker-Skirmisher 4338 | -6/Factory | Learned location of Protoforge (-3) 4347 | -6/Factory | Garrison activated, responded to threat 4447 | -6/Factory | Cargo convoy interrupted 4448 | -6/Factory | System Shield fried by hacking feedback 4494 | -6/Factory | Lost 7 parts (3n3u1w) 4500 | -6/Factory | Scrapoids reinforcements arrived? 4673 | -6/Factory | Search patrols dispatched 4881 | -6/Factory | Build established: Assassin 5153 | -6/Factory | Crushed by falling debris 5154 | -6/Factory | Core integrity fell below 50% 5161 | -6/Factory | Crushed by falling debris 5162 | -6/Factory | System corruption reached 10% 5209 | -6/Factory | Lost 5 parts (4u1w) 5261 | -6/Factory | Garrison activated, responded to threat 5373 | -6/Factory | First assault squad dispatched 5437 | -6/Factory | Core integrity fell below 20% 5462 | -6/Factory | Lost 6 parts (1p3u2w) 5486 | -6/Factory | Released all parts (7) 5491 | -6/Factory | Destroyed by H-66 Slayer with Gauss Rifle Last Messages --------------- 05473_ Arm. Leg+ destroyed. 05473_ Penetrated by Slug. 05480_ Phase Cannon destroyed. 05480_ Penetrated by Slug. 05480_ Neutrino Core destroyed. 05481_ System corrupted: Energy discharge (-19). 05485_ Triggered Alarm Trap. 05485_ An alarm sounds. 05485_ ALERT: Alarm triggered, dispatching investigation squad. 05486_ Released Gatling Laser. 05486_ Released IFF Parser. 05486_ Released Targeting Computer. 05486_ Released Hacking Suite. 05486_ Released Imp. Heat Sink. 05486_ Released Arm. Leg+. 05486_ Released Multireflex Exoskeleton. 05489_ Slug penetrates Wall. 05489_ Penetrated by Slug. 05491_ Slug penetrates Pressure Siphon. Map ----- +----------------------------------------------------+ | + """"""" # # ???????????????????????????? | | # """"""" # # ???????????????????????????? | | # """"""" # ##???????????????????????????? | | # """"""" ###########???????????????????????????? | | ###########?????????#???????????????????????????? | | # """T""" #?????????#?????????????????????????### | | # #?????????#?????????????????????????# | | + """ """ #?????????#?????????????????????????### | | # """ """ #?????????#?????????????????????????#?? | | # """ """ #???#######?????????????????????????#?? | | # #???# ?????????????????????????#?? | | ## #???# ?????????????????????????#?? | | ?# #???# """ "?????????????????????????#?? | | ?#########"#???# """ "?????????????????????????#?? | | ### #????# #???# """ """ # # #?? | | #????# #???# # # #?? | | #####????# #??## """ # # #?? | | ###?????# #??# """ # # #?? | | """####### #??## """ # ##############?? | | # #???# # #??????????????? | | " # #???# "T" # #??????????????? | | " / # #???# # #??????????????? | | " # #???############## #??????????????? | | # ############?????# #????########### | | " # h[! ####### #????# | | "" # Y= @ #????# | | "" + g #????# """""" | | # g #????# """""" | | """ + A #????# """""" | | """"" ######## k#????# """""" | | """"" #??????# """ %"" ###??# | | #??????# " % %" " #??# """""" | | #??????# "h "Y" #??# """""" | | #??????# h "" #??# """""" | | ###/######??????# ! % k #??# """""" | | ??# #???????????# % % #??# | | ??# #???????????#####"" ""#% #############+ | | ??# #???????????????#""G""#% | | ??# #???????????????####### | | ### #????????????????????# ???? | | #??#############?????# ???? | | #####??# #?????# """"" ????? | | ???????#! """ #?????# ^ """"" ????? | | ???????# """ #?????# """ ????? | | #####??# """ #?????# ?????? | | """"#### "" ####### """""^""""" ?????? | | !!= # = = "" # """"" """"??????????? | | =|="# === # """^ """ ?????????? | | =%=="# === # ????????? | | ** =!# # ????????? | +----------------------------------------------------+ Best States ------------- Heat Dissipation 51 Energy Generation 19 Energy Capacity 500 Matter Stores 300 Matter Capacity 300 Sight Range 22 Robot Scan Range 16 Terrain Scan Density 10 Cloak Strength 2 Armor Coverage 225 Phase Shifting 5 Evasion (%) 60 Targeting Accuracy 5 Core Analysis 6 Offensive Hacking 20 Defensive Hacking 22 Authchip Count 1 Item Schematics ----------------- None Robot Schematics ------------------ None Fabricated ------------ Proton Cannon | x2 | -6/Factory | Preloaded Adv. VSS Leg | x2 | -6/Factory | Preloaded Repaired ---------- Nothing Studied --------- Arm. Leg | -6/Factory | Hacked Great Maul | -6/Factory | Hacked Magnetic Acceleration Cannon | -6/Factory | Hacked Alien Tech Used ----------------- None Achievements -------------- None Challenges ------------ None Game ------ Seed BlastPhasingCleaver Manual? 0 Play Time 01:06:29 Cumulative 144.0 hours Start 2025.12.02 @ 20:05:03 End 2025.12.02 @ 21:13:28 Sessions 1 Manual Loads 0 Difficulty Rogue Special Mode None Game No. 77 Rogue 77 Adventurer 0 Explorer 0 Win Type - Total 1 Types 1/0/0/0/0/0/0/0/0/0 Lore% 65 Gallery% 61 Achievement% 49 Wizard Run 0 Options --------- Layout 1 ASCII 0 Keyboard 0 Movement Mouse Keybinds 0 Fullscreen 2 Font 32/SmallcapsGlow Map View 50x35 Zoom Use 0% Tactical HUD 1 Map Filters NONE Filters NONE Steam 1 RUN: 98d841fc-4120-444d-b5e9-144cdb6fd0d2